fUST/lending_fUST_20250821
["ID","MTS","AMOUNT","RATE_DAILY","PERIOD"]
[380457179,1755779455028,-505.00374901,0.00021973,2]
[380457180,1755779455038,-501.93195695,0.00021973,2]
[380457181,1755779455047,-500.0,0.00021973,2]
[380457182,1755779455058,-176.57075362,0.00021973,2]
[380457183,1755779482578,429.900343,0.00021918,120]
[380457185,1755779528581,1659.91,0.00019598,2]
[380457186,1755779733061,840.34964202,0.00019235,2]
[380457187,1755779733088,159.65035798,0.00019235,2]
[380457188,1755779779378,3708.0,0.00019599,2]
[380457189,1755779784834,1000.0,0.00027397,120]
[380457190,1755779799218,167.26404379,0.00019593,2]
[380457191,1755779800384,1016.3084625,0.00019241,2]
[380457192,1755779841373,159.97044449,0.00019593,2]
[380457193,1755779844892,167.26404378,0.00019593,2]
[380457194,1755779896918,4621.54264746,0.00019242,2]
[380457195,1755779896940,10000.0,0.00019242,2]
[380457196,1755779896962,10000.0,0.00019242,2]
[380457197,1755779896982,10000.0,0.00019242,2]
[380457198,1755779897003,10000.0,0.00019242,2]
[380457199,1755779897023,2064.51884974,0.00019242,2]
[380457200,1755779901488,159.97044448,0.00019593,2]
[380457202,1755779943008,7775.51070578,0.00019249,2]
[380457203,1755779943031,2224.48929422,0.00019249,2]
[380457204,1755779974650,803.43376398,0.00019599,2]
[380457205,1755779991264,549.84368894,0.00019599,2]
[380457206,1755780008457,168.95489268,0.00019599,2]
[380457207,1755780027152,433.29747016,0.00019599,2]
[380457208,1755780043363,151.0,0.00019599,2]
[380457209,1755780064631,174.530943,0.00019403,2]
[380457211,1755780070907,959.84776768,0.00019599,2]
[380457212,1755780072925,182.746921,0.00013699,2]
[380457213,1755780086805,254.62464828,0.00019599,2]
[380457214,1755780104364,480.0,0.00019599,2]
[380457215,1755780188408,3561.7579993,0.00019336,2]
[380457216,1755780317159,1000.0,0.00027397,120]
[380457217,1755780397054,55.47261076,0.00019236,2]
[380457218,1755780397076,879.19809224,0.00019236,2]
[380457219,1755780478085,7108.0174889,0.00019202,2]
[380457220,1755780518725,2012.78441886,0.00019188,2]
[380457221,1755780518747,10000.0,0.00019188,2]
[380457222,1755780518781,10000.0,0.00019188,2]
[380457223,1755780518811,10000.0,0.00019188,2]
[380457224,1755780518834,10000.0,0.00019188,2]
[380457225,1755780518855,10000.0,0.00019188,2]
[380457226,1755780518876,10000.0,0.00019188,2]
[380457227,1755780518898,10000.0,0.00019188,2]
[380457228,1755780518919,10000.0,0.00019188,2]
[380457229,1755780518940,10000.0,0.00019188,2]
[380457230,1755780518962,10000.0,0.00019188,2]
[380457231,1755780518983,10000.0,0.00019188,2]
[380457232,1755780519004,10000.0,0.00019188,2]
[380457233,1755780519026,10000.0,0.00019188,2]
[380457234,1755780519058,10000.0,0.00019188,2]
[380457235,1755780519080,10000.0,0.00019188,2]
[380457236,1755780519101,10000.0,0.00019188,2]
[380457237,1755780519124,10000.0,0.00019188,2]
[380457238,1755780519147,3312.89645544,0.00019188,2]
[380457239,1755780526466,1191.24971188,0.00019599,2]
[380457240,1755780536809,5000.0,0.00019599,2]
[380457241,1755780556340,495.85383268,0.00019599,2]
[380457242,1755780556362,4504.14616732,0.00019599,2]
[380457243,1755780564592,-239.53740839,0.00019763,2]
[380457244,1755780566126,-26.54826525,0.00019763,2]
[380457245,1755780566147,-463.49303044,0.00019817,2]
[380457246,1755780566167,-171.227366,0.00019863,2]
[380457247,1755780566192,-567.70959884,0.000199,2]
[380457248,1755780572013,5000.0,0.00019599,2]
[380457249,1755780580712,495.85383268,0.00019599,2]
[380457250,1755780580737,3459.70347552,0.00019599,2]
[380457251,1755780590022,5000.0,0.00019599,2]
[380457252,1755780598464,1044.4426918,0.00019599,2]
[380457253,1755780608894,495.85383268,0.00019599,2]
[380457254,1755780608918,4504.14616732,0.00019599,2]
[380457255,1755780615467,308.99535363,0.000189,2]
[380457277,1755780632178,-1007.48256703,0.000199,2]
[380457278,1755780632187,-5000.0,0.00019986,2]
[380457279,1755780632196,-182.746921,0.00020187,2]
[380457280,1755780632206,-536.45,0.00020243,3]
[380457281,1755780632215,-268.22,0.00020243,3]
[380457282,1755780632225,-804.71,0.00020243,3]
[380457283,1755780632235,-300.0,0.00020243,2]
[380457284,1755780632247,-232.0,0.00020243,2]
[380457285,1755780632256,-300.0,0.00020243,2]
[380457286,1755780632266,-1200.0,0.00020243,2]
[380457287,1755780632277,-300.0,0.00020243,2]
[380457288,1755780632287,-1200.0,0.00020244,2]
[380457289,1755780632296,-3657.50172701,0.00020244,2]
[380457292,1755780632321,-471.98987529,0.00020244,2]
[380457293,1755780632333,-522.32389176,0.00020244,2]
[380457295,1755780638094,-2888.86462427,0.00020244,2]
[380457296,1755780638143,-565.0,0.00020244,2]
[380457297,1755780638155,-9285.13733091,0.00020244,2]
[380457298,1755780638200,-15436.93289751,0.00020244,2]
[380457299,1755780638209,-537.6,0.0002025,2]
[380457300,1755780638220,-500.0,0.00020253,2]
[380457301,1755780638230,-243.76491155,0.000203,2]
[380457302,1755780638239,-339.24632885,0.000203,2]
[380457303,1755780638251,-500.0,0.000203,2]
[380457304,1755780638260,-500.0,0.000203,2]
[380457305,1755780638270,-500.0,0.000203,2]
[380457306,1755780638279,-181.69236082,0.000203,2]
[380457307,1755780638288,-394.78644593,0.000203,2]
[380457308,1755780638297,-500.0,0.000203,2]
[380457310,1755780638307,-500.98423419,0.000203,2]
[380457312,1755780638316,-500.0,0.000203,2]
[380457314,1755780638325,-503.3733671,0.000203,2]
[380457316,1755780638334,-500.0,0.000203,2]
[380457317,1755780638343,-500.0,0.000203,2]
[380457318,1755780638352,-500.0,0.000203,2]
[380457319,1755780638361,-2951.0,0.0002032,2]
[380457320,1755780638371,-5732.5895922,0.00020512,2]
[380457321,1755780638380,-500.0,0.00020527,2]
[380457322,1755780638389,-1230.81300468,0.00020587,2]
[380457323,1755780638399,-500.0,0.0002062,2]
[380457324,1755780638408,-227.77291378,0.0002062,2]
[380457325,1755780638419,-178.37834469,0.0002062,2]
[380457326,1755780638429,-500.0,0.0002062,2]
[380457327,1755780638438,-500.0,0.0002062,2]
[380457328,1755780638447,-500.0,0.0002062,2]
[380457329,1755780638457,-545.01508227,0.0002062,2]
[380457330,1755780638466,-500.0,0.0002062,2]
[380457331,1755780638475,-500.0,0.0002062,2]
[380457332,1755780638484,-500.0,0.0002062,2]
[380457333,1755780638494,-500.0,0.0002062,2]
[380457334,1755780638506,-500.0,0.0002062,2]
[380457335,1755780638515,-500.0,0.0002062,2]
[380457336,1755780638525,-500.0,0.0002062,2]
[380457337,1755780638539,-581.50242933,0.0002062,2]
[380457338,1755780638548,-500.0,0.0002062,2]
[380457339,1755780638557,-500.0,0.0002062,2]
[380457340,1755780638568,-500.0,0.0002062,2]
[380457341,1755780638577,-500.0,0.0002062,2]
[380457342,1755780638586,-500.0,0.0002062,2]
[380457343,1755780638595,-500.0,0.0002062,2]
[380457344,1755780638604,-500.0,0.0002062,2]
[380457345,1755780638614,-500.0,0.0002062,2]
[380457346,1755780638624,-500.0,0.0002062,2]
[380457347,1755780638633,-500.0,0.0002062,2]
[380457348,1755780638643,-500.0,0.0002062,2]
[380457349,1755780638652,-500.0,0.0002062,2]
[380457350,1755780638661,-500.0,0.0002062,2]
[380457352,1755780638670,-500.0,0.0002062,2]
[380457354,1755780638679,-500.0,0.0002062,2]
[380457356,1755780638688,-500.0,0.0002062,2]
[380457358,1755780638698,-500.0,0.0002062,2]
[380457360,1755780638707,-500.0,0.0002062,2]
[380457362,1755780638716,-500.0,0.0002062,2]
[380457364,1755780638725,-500.0,0.0002062,2]
[380457366,1755780638735,-500.0,0.0002062,2]
[380457367,1755780638744,-6435.59176647,0.00020621,7]
[380457368,1755780638755,-613.0,0.0002065,2]
[380457369,1755780638765,-314.01,0.00020686,10]
[380457370,1755780638774,-512.89,0.00020686,10]
[380457371,1755780638783,-427.4,0.00020686,10]
[380457372,1755780638792,-151.0,0.00020696,2]
[380457373,1755780638801,-151.0,0.00020696,2]
[380457374,1755780638811,-151.0,0.00020696,2]
[380457375,1755780638820,-151.0,0.00020696,2]
[380457376,1755780638829,-19187.29552238,0.00020696,2]
[380457377,1755780638839,-205.19620638,0.00020696,2]
[380457378,1755780638848,-537.6,0.00020798,2]
[380457379,1755780638857,-506.25103804,0.00020801,2]
[380457380,1755780638867,-1007.48256685,0.00020835,2]
[380457381,1755780638877,-962.38256188,0.00020848,2]
[380457382,1755780638886,-1000.0,0.00020848,2]
[380457383,1755780638895,-1000.0,0.00020848,2]
[380457384,1755780638905,-555.72066726,0.00020848,2]
[380457385,1755780638914,-3826.0,0.00020926,2]
[380457386,1755780638924,-300.36464119,0.00020969,2]
[380457387,1755780638933,-160.0,0.0002121,2]
[380457388,1755780638942,-160.0,0.0002121,2]
[380457389,1755780638952,-160.0,0.0002121,2]
[380457390,1755780638961,-160.0,0.0002121,2]
[380457391,1755780638970,-160.0,0.0002121,2]
[380457392,1755780638979,-215.86710461,0.0002121,2]
[380457393,1755780638988,-160.0,0.0002121,2]
[380457394,1755780639000,-160.0,0.0002121,2]
[380457395,1755780639009,-232.28399145,0.0002121,2]
[380457396,1755780639019,-216.95272161,0.0002121,2]
[380457397,1755780639027,-844.19128999,0.0002121,2]
[380457398,1755780639037,-376.00439007,0.0002121,2]
[380457399,1755780639047,-160.0,0.00021215,2]
[380457400,1755780639057,-150.0,0.00021258,2]
[380457401,1755780639067,-614.74030482,0.00021313,2]
[380457402,1755780639076,-537.6,0.00021346,2]
[380457403,1755780639086,-501.65704101,0.00021396,2]
[380457404,1755780639095,-500.0,0.00021396,2]
[380457405,1755780639105,-151.0,0.000216,4]
[380457406,1755780639124,-1072.9,0.00021613,3]
[380457407,1755780639138,-536.44,0.00021613,3]
[380457408,1755780639148,-973.0,0.00021721,2]
[380457409,1755780639157,-2154.0,0.00021721,2]
[380457410,1755780639167,-637.0,0.00021721,2]
[380457411,1755780639176,-172.432,0.00021786,2]
[380457412,1755780639186,-1105.626,0.00021786,2]
[380457413,1755780639195,-151.0,0.000218,4]
[380457414,1755780639204,-151.0,0.000218,3]
[380457415,1755780639214,-235.21886174,0.00021809,2]
[380457416,1755780639223,-6599.9267115,0.00021817,2]
[380457417,1755780639232,-1830.64914359,0.00021817,2]
[380457418,1755780639241,-1700.0,0.00021844,2]
[380457419,1755780639256,-1340.32,0.0002189,2]
[380457420,1755780639265,-1340.32,0.0002189,2]
[380457421,1755780639275,-1340.32,0.0002189,2]
[380457422,1755780639284,-1340.32,0.0002189,2]
[380457423,1755780639294,-1340.32,0.0002189,2]
[380457424,1755780639303,-1340.32,0.0002189,2]
[380457425,1755780639312,-1340.32,0.0002189,2]
[380457426,1755780639321,-1340.32,0.0002189,2]
[380457427,1755780639330,-1340.32,0.0002189,2]
[380457428,1755780639340,-1340.32,0.0002189,2]
[380457429,1755780639349,-1340.32,0.0002189,2]
[380457430,1755780639359,-1340.32,0.0002189,2]
[380457431,1755780639368,-1340.32,0.0002189,2]
[380457432,1755780639377,-1340.32,0.0002189,2]
[380457433,1755780639386,-1340.32,0.0002189,2]
[380457434,1755780639395,-1340.32,0.0002189,2]
[380457435,1755780639405,-1340.32,0.0002189,2]
[380457436,1755780639414,-1340.32,0.0002189,2]
[380457437,1755780639424,-1340.32,0.0002189,2]
[380457438,1755780639434,-1230.24752961,0.0002189,2]
[380457439,1755780639447,-110.07247039,0.0002189,2]
[380457440,1755780639457,-1336.07069361,0.0002189,2]
[380457444,1755780639835,-253.03501115,0.00019637,2]
[380457455,1755780640101,-184.87148701,0.00019637,2]
[380457457,1755780640112,-4.24930639,0.0002189,2]
[380457459,1755780640121,-561.47840223,0.0002189,2]
[380457461,1755780640134,-778.84159777,0.0002189,2]
[380457463,1755780640143,-1340.32,0.0002189,2]
[380457465,1755780640152,-1340.47754219,0.0002189,2]
[380457467,1755780640162,-537.6,0.00021894,2]
[380457469,1755780640171,-250.0,0.000219,10]
[380457471,1755780640181,-500.0,0.00021916,2]
[380457473,1755780640190,-266.50113155,0.00021916,2]
[380457475,1755780640199,-500.0,0.00021916,2]
[380457477,1755780640209,-500.0,0.00021916,2]
[380457479,1755780640219,-500.0,0.00021916,2]
[380457481,1755780640228,-500.0,0.00021916,2]
[380457483,1755780640238,-376.2172538,0.00021916,2]
[380457484,1755780640251,-500.0,0.00021916,2]
[380457486,1755780640260,-500.0,0.00021916,2]
[380457488,1755780640270,-500.0,0.00021916,2]
[380457490,1755780640279,-500.0,0.00021916,2]
[380457493,1755780640289,-500.0,0.00021916,2]
[380457495,1755780640298,-500.0,0.00021916,2]
[380457496,1755780640308,-500.0,0.00021916,2]
[380457498,1755780640317,-500.0,0.00021916,2]
[380457500,1755780640326,-530.60388287,0.00021916,2]
[380457502,1755780640335,-480.0,0.00021917,3]
[380457504,1755780640344,-480.0,0.00021917,3]
[380457506,1755780640354,-580.45267894,0.00021917,3]
[380457507,1755780640363,-670.66,0.00021917,3]
[380457509,1755780640373,-480.0,0.00021917,3]
[380457511,1755780640382,-480.0,0.00021917,3]
[380457513,1755780640391,-480.0,0.00021917,3]
[380457515,1755780640400,-480.0,0.00021917,3]
[380457516,1755780640410,-483.16034871,0.00021917,3]
[380457519,1755780640420,-480.0,0.00021917,3]
[380457520,1755780640430,-480.0,0.00021917,3]
[380457522,1755780640439,-480.0,0.00021917,3]
[380457525,1755780640449,-480.0,0.00021917,3]
[380457526,1755780640459,-480.0,0.00021917,3]
[380457528,1755780640468,-151.0,0.00021917,2]
[380457531,1755780640478,-480.0,0.00021917,3]
[380457533,1755780640487,-480.0,0.00021917,3]
[380457535,1755780640500,-480.0,0.00021917,3]
[380457537,1755780640510,-480.0,0.00021917,3]
[380457539,1755780640519,-480.0,0.00021917,3]
[380457540,1755780640529,-151.0,0.00021917,2]
[380457542,1755780640538,-480.0,0.00021917,3]
[380457543,1755780640552,-480.0,0.00021917,3]
[380457544,1755780640562,-500.0,0.00021917,3]
[380457545,1755780640572,-500.0,0.00021917,3]
[380457546,1755780640581,-500.0,0.00021917,3]
[380457547,1755780640591,-500.0,0.00021917,3]
[380457548,1755780640600,-500.0,0.00021917,3]
[380457549,1755780640610,-500.0,0.00021917,3]
[380457550,1755780640620,-480.0,0.00021917,3]
[380457551,1755780640629,-480.0,0.00021917,3]
[380457552,1755780640639,-480.0,0.00021917,3]
[380457553,1755780640648,-480.0,0.00021917,3]
[380457554,1755780640657,-480.0,0.00021917,3]
[380457555,1755780640667,-480.0,0.00021917,3]
[380457556,1755780640676,-480.0,0.00021917,3]
[380457557,1755780640685,-480.0,0.00021917,3]
[380457558,1755780640695,-480.0,0.00021917,3]
[380457559,1755780640704,-480.0,0.00021917,3]
[380457560,1755780640714,-480.0,0.00021917,3]
[380457561,1755780640723,-893.27,0.00021917,3]
[380457562,1755780640733,-480.0,0.00021917,3]
[380457563,1755780640742,-480.0,0.00021917,3]
[380457564,1755780640755,-151.0,0.00021917,2]
[380457565,1755780640764,-480.0,0.00021917,3]
[380457566,1755780640773,-480.0,0.00021917,3]
[380457567,1755780640783,-480.0,0.00021917,3]
[380457568,1755780640792,-649.78,0.00021917,3]
[380457569,1755780640801,-480.0,0.00021917,3]
[380457571,1755780640810,-151.0,0.00021917,2]
[380457572,1755780640820,-151.0,0.00021917,2]
[380457574,1755780640829,-480.0,0.00021917,3]
[380457576,1755780640838,-480.0,0.00021917,3]
[380457577,1755780640847,-483.9905132,0.00021917,3]
[380457579,1755780640856,-480.0,0.00021917,3]
[380457581,1755780640865,-480.0,0.00021917,3]
[380457583,1755780640874,-480.0,0.00021917,3]
[380457585,1755780640883,-480.85728125,0.00021917,3]
[380457587,1755780640892,-151.0,0.00021917,2]
[380457589,1755780640902,-164.43658284,0.00021917,3]
[380457591,1755780640911,-151.0,0.00021917,2]
[380457593,1755780640920,-480.0,0.00021917,3]
[380457595,1755780640929,-839.94,0.00021917,3]
[380457597,1755780640938,-765.39,0.00021917,3]
[380457599,1755780640948,-480.0,0.00021917,3]
[380457601,1755780640957,-480.0,0.00021917,3]
[380457603,1755780640966,-517.55,0.00021917,3]
[380457605,1755780640975,-480.0,0.00021917,3]
[380457607,1755780640984,-480.68567924,0.00021917,3]
[380457609,1755780640993,-480.0,0.00021917,3]
[380457610,1755780641006,-2173.33,0.00021917,3]
[380457611,1755780641015,-480.0,0.00021917,3]
[380457612,1755780641024,-605.21,0.00021917,3]
[380457613,1755780641033,-151.0,0.00021917,2]
[380457614,1755780641043,-151.0,0.00021917,2]
[380457615,1755780641053,-1444.05,0.00021917,3]
[380457616,1755780641062,-480.0,0.00021917,3]
[380457617,1755780641071,-980.48,0.00021917,3]
[380457618,1755780641080,-480.0,0.00021917,3]
[380457619,1755780641090,-480.0,0.00021917,3]
[380457620,1755780641099,-480.0,0.00021917,3]
[380457621,1755780641110,-480.0,0.00021917,3]
[380457622,1755780641119,-480.0,0.00021917,3]
[380457623,1755780641129,-480.0,0.00021917,3]
[380457624,1755780641138,-480.0,0.00021917,3]
[380457625,1755780641148,-482.57,0.00021917,3]
[380457626,1755780641157,-480.0,0.00021917,3]
[380457627,1755780641166,-480.0,0.00021917,3]
[380457628,1755780641175,-480.0,0.00021917,3]
[380457629,1755780641185,-480.0,0.00021917,3]
[380457630,1755780641194,-480.0,0.00021917,3]
[380457631,1755780641204,-480.0,0.00021917,3]
[380457632,1755780641216,-480.0,0.00021917,3]
[380457633,1755780641226,-480.0,0.00021917,3]
[380457634,1755780641235,-480.0,0.00021917,3]
[380457635,1755780641244,-491.87,0.00021917,3]
[380457636,1755780641259,-480.0,0.00021917,3]
[380457637,1755780641269,-151.538521,0.00021917,2]
[380457638,1755780641278,-480.0,0.00021917,3]
[380457639,1755780641287,-480.0,0.00021917,3]
[380457640,1755780641296,-480.0,0.00021917,3]
[380457641,1755780641306,-480.0,0.00021917,3]
[380457642,1755780641315,-480.0,0.00021917,3]
[380457643,1755780641325,-480.0,0.00021917,3]
[380457644,1755780641334,-480.0,0.00021917,3]
[380457645,1755780641343,-480.0,0.00021917,3]
[380457646,1755780641352,-623.41,0.00021917,3]
[380457647,1755780641362,-480.0,0.00021917,3]
[380457648,1755780641372,-480.0,0.00021917,3]
[380457649,1755780641381,-480.0,0.00021917,3]
[380457650,1755780641391,-430.0,0.00021917,3]
[380457651,1755780641400,-480.0,0.00021917,3]
[380457652,1755780641410,-480.0,0.00021917,2]
[380457653,1755780641419,-480.0,0.00021917,3]
[380457654,1755780641427,-480.0,0.00021917,3]
[380457655,1755780641437,-480.0,0.00021917,3]
[380457656,1755780641446,-1095.55,0.00021917,3]
[380457657,1755780641455,-480.0,0.00021917,3]
[380457658,1755780641465,-480.0,0.00021917,3]
[380457659,1755780641476,-480.0,0.00021917,3]
[380457660,1755780641486,-480.0,0.00021917,3]
[380457661,1755780641496,-480.0,0.00021917,3]
[380457662,1755780641510,-896.22,0.00021917,3]
[380457663,1755780641519,-151.0,0.00021917,2]
[380457664,1755780641529,-151.0,0.00021917,2]
[380457665,1755780641542,-1285.34,0.00021917,3]
[380457666,1755780641552,-480.0,0.00021917,3]
[380457667,1755780641561,-151.0,0.00021917,2]
[380457668,1755780641571,-480.0,0.00021917,3]
[380457669,1755780641580,-151.0,0.00021917,2]
[380457670,1755780641753,-480.0,0.00021917,3]
[380457671,1755780641763,-480.0,0.00021917,3]
[380457672,1755780641773,-480.0,0.00021917,3]
[380457673,1755780641782,-480.0,0.00021917,3]
[380457674,1755780641791,-480.0,0.00021917,3]
[380457675,1755780641801,-480.0,0.00021917,3]
[380457676,1755780641810,-480.0,0.00021917,3]
[380457677,1755780641819,-480.0,0.00021917,3]
[380457678,1755780641828,-480.0,0.00021917,3]
[380457679,1755780641837,-606.81,0.00021917,3]
[380457680,1755780641847,-480.0,0.00021917,3]
[380457681,1755780641856,-568.44,0.00021917,3]
[380457682,1755780641865,-480.0,0.00021917,3]
[380457683,1755780641875,-627.97,0.00021917,3]
[380457684,1755780641884,-592.85479424,0.00021917,3]
[380457685,1755780641893,-480.0,0.00021917,3]
[380457686,1755780641903,-480.0,0.00021917,3]
[380457687,1755780641912,-742.72,0.00021917,3]
[380457688,1755780641922,-151.0,0.00021917,2]
[380457689,1755780641932,-151.0,0.00021917,2]
[380457690,1755780641943,-151.0,0.00021917,2]
[380457691,1755780641952,-480.0,0.00021917,3]
[380457692,1755780641961,-480.0,0.00021917,3]
[380457693,1755780641971,-151.0,0.00021917,2]
[380457694,1755780641980,-480.0,0.00021917,3]
[380457695,1755780641991,-151.0,0.00021917,2]
[380457696,1755780642004,-201.906032,0.00021917,2]
[380457697,1755780642013,-558.4845611,0.00021917,3]
[380457698,1755780642022,-480.0,0.00021917,3]
[380457699,1755780642031,-566.35,0.00021917,3]
[380457700,1755780642040,-882.1,0.00021917,3]
[380457701,1755780642049,-480.0,0.00021917,3]
[380457702,1755780642059,-2378.46,0.00021917,3]
[380457703,1755780642068,-151.0,0.00021917,2]
[380457704,1755780642077,-480.0,0.00021917,3]
[380457705,1755780642087,-572.98,0.00021917,3]
[380457706,1755780642097,-151.0,0.00021917,2]
[380457707,1755780642107,-480.0,0.00021917,3]
[380457708,1755780642116,-480.0,0.00021917,3]
[380457709,1755780642127,-480.0,0.00021917,3]
[380457710,1755780642136,-969.43,0.00021917,3]
[380457711,1755780642145,-628.9,0.00021917,3]
[380457712,1755780642154,-691.03,0.00021917,3]
[380457713,1755780642164,-480.0,0.00021917,3]
[380457714,1755780642173,-632.94,0.00021917,3]
[380457715,1755780642182,-480.0,0.00021917,3]
[380457716,1755780642192,-333.56644527,0.00021917,3]
[380457717,1755780642201,-480.0,0.00021917,3]
[380457718,1755780642210,-463.29672371,0.00021917,3]
[380457719,1755780642219,-480.0,0.00021917,3]
[380457720,1755780642229,-151.0,0.00021917,2]
[380457721,1755780642238,-151.0,0.00021917,2]
[380457722,1755780642251,-151.0,0.00021917,2]
[380457723,1755780642260,-151.0,0.00021917,3]
[380457724,1755780642270,-151.0,0.00021917,2]
[380457725,1755780642279,-151.0,0.00021917,2]
[380457726,1755780642288,-174.62108,0.00021917,2]
[380457727,1755780642297,-151.0,0.00021917,3]
[380457728,1755780642307,-378.00841496,0.00021917,3]
[380457729,1755780642316,-480.0,0.00021917,3]
[380457730,1755780642325,-480.0,0.00021917,3]
[380457731,1755780642334,-1539.51,0.00021917,3]
[380457732,1755780642343,-1765.21,0.00021917,3]
[380457733,1755780642353,-480.0,0.00021917,3]
[380457734,1755780642363,-480.0,0.00021917,3]
[380457735,1755780642373,-480.0,0.00021917,3]
[380457736,1755780642382,-480.0,0.00021917,3]
[380457737,1755780642391,-1275.86,0.00021917,3]
[380457738,1755780642401,-890.86,0.00021917,3]
[380457739,1755780642410,-366.11999844,0.00021917,3]
[380457740,1755780642418,-607.2,0.00021917,3]
[380457741,1755780642427,-480.0,0.00021917,3]
[380457742,1755780642436,-480.0,0.00021917,3]
[380457743,1755780642445,-566.93619366,0.00021917,3]
[380457744,1755780642455,-720.86,0.00021917,3]
[380457745,1755780642464,-480.0,0.00021917,3]
[380457746,1755780642473,-421.20751745,0.00021917,3]
[380457747,1755780642483,-1564.51,0.00021917,3]
[380457748,1755780642493,-480.0,0.00021917,3]
[380457749,1755780642505,-543.48,0.00021917,3]
[380457750,1755780642514,-480.0,0.00021917,3]
[380457751,1755780642524,-480.0,0.00021917,3]
[380457752,1755780642533,-480.0,0.00021917,3]
[380457753,1755780642544,-480.0,0.00021917,3]
[380457754,1755780642554,-480.0,0.00021917,3]
[380457755,1755780642563,-480.0,0.00021917,3]
[380457756,1755780642573,-1004.75,0.00021917,3]
[380457757,1755780642582,-480.0,0.00021917,3]
[380457758,1755780642592,-480.0,0.00021917,3]
[380457759,1755780642601,-480.0,0.00021917,3]
[380457760,1755780642611,-811.89,0.00021917,3]
[380457762,1755780642620,-480.0,0.00021917,3]
[380457763,1755780642629,-480.0,0.00021917,3]
[380457764,1755780642639,-480.0,0.00021917,3]
[380457765,1755780642648,-480.0,0.00021917,3]
[380457766,1755780642657,-1624.97,0.00021917,3]
[380457767,1755780642667,-480.0,0.00021917,3]
[380457769,1755780642676,-696.8,0.00021917,3]
[380457770,1755780642685,-480.0,0.00021917,3]
[380457771,1755780642694,-480.0,0.00021917,3]
[380457772,1755780642703,-481.52929514,0.00021917,3]
[380457773,1755780642712,-480.0,0.00021917,3]
[380457774,1755780642722,-480.0,0.00021917,3]
[380457775,1755780642731,-480.0,0.00021917,3]
[380457776,1755780642741,-480.0,0.00021917,3]
[380457777,1755780642752,-2229.32,0.00021917,3]
[380457778,1755780642762,-2484.84,0.00021917,3]
[380457779,1755780642771,-480.0,0.00021917,3]
[380457780,1755780642780,-480.0,0.00021917,3]
[380457781,1755780642789,-460.0,0.00021917,3]
[380457782,1755780642799,-616.96999114,0.00021917,3]
[380457783,1755780642808,-4542.82,0.00021917,3]
[380457784,1755780642817,-1384.46,0.00021917,3]
[380457785,1755780642827,-608.33513711,0.00021917,3]
[380457786,1755780642836,-480.0,0.00021917,3]
[380457787,1755780642846,-480.0,0.00021917,3]
[380457788,1755780642855,-965.75,0.00021917,3]
[380457789,1755780642864,-480.0,0.00021917,3]
[380457790,1755780642873,-480.0,0.00021917,3]
[380457791,1755780642883,-480.0,0.00021917,3]
[380457792,1755780642892,-480.0,0.00021917,3]
[380457793,1755780642901,-480.0,0.00021917,3]